Workbook

Sheet Tabulky
A2: Skupina A - kurt | C2: Fejka Štěpán | D2: Kafka Michal | E2: Navarra Tomáš | F2: Dušek Lukáš | G2: Pořadí | H2: Počet vítězství
A3: A1 | B3: Fejka Štěpán | D3: 4-0 | E3: 4-0 | F3: 4-0 | G3: 1. | H3: 3
A4: A2 | B4: Kafka Michal | C4: 0-4 | E4: 2-4 | F4: 4-0 | G4: 3. | H4: 1
A5: A3 | B5: Navarra Tomáš | C5: 0-4 | D5: 4-2 | F5: 4-0 | G5: 2. | H5: 2
A6: A4 | B6: Dušek Lukáš | C6: 0-4 | D6: 0-4 | E6: 0-4 | G6: 4. | H6: 0
A8: Skupina B - kurt | C8: Šebek Filip | D8: Hron Lukáš | E8: Štefaník Antonín | F8: Štěpánek Adam | G8: Roček Eduard | H8: Pořadí | I8: Počet vítězství
A9: B1 | B9: Šebek Filip | D9: 4-0 | E9: 4-1 | F9: 4-2 | G9: 4-2 | H9: 1. | I9: 4
A10: B2 | B10: Hron Lukáš | C10: 0-4 | E10: 4-2 | F10: 1-4 | G10: 4-0 | H10: 3. | I10: 2
A11: B3 | B11: Štefaník Antonín | C11: 1-4 | D11: 2-4 | F11: 2-4 | G11: 4-1 | H11: 4. | I11: 1
A12: B4 | B12: Štěpánek Adam | C12: 2-4 | D12: 4-1 | E12: 4-2 | G12: 4-1 | H12: 2. | I12: 3
A13: B5 | B13: Roček Eduard | C13: 2-4 | D13: 0-4 | E13: 1-4 | F13: 1-4 | H13: 5. | I13: 0
A15: Skupina C - kurt | C15: Jaroš Vojta | D15: Psota David | E15: Hájek Petr | F15: Mikeš David | G15: Hovorka Hugo | H15: Pořadí | I15: Počet vítězství
A16: C1 | B16: Jaroš Vojta | D16: 4-1 | E16: 4-3 | F16: 4-1 | G16: 4-2 | H16: 1. | I16: 4
A17: C2 | B17: Psota David | C17: 1-4 | E17: 3-4 | F17: 2-4 | G17: 4-0 | H17: 4. | I17: 1
A18: C3 | B18: Hájek Petr | C18: 3-4 | D18: 4-3 | F18: 4-1 | G18: 4-1 | H18: 2. | I18: 3
A19: C4 | B19: Mikeš David | C19: 1-4 | D19: 4-2 | E19: 1-4 | G19: 4-0 | H19: 3. | I19: 2
A20: C5 | B20: Hovorka Hugo | C20: 2-4 | D20: 0-4 | E20: 1-4 | F20: 0-4 | H20: 5. | I20: 0
A22: Skupina D - kurt | C22: Janoušek Šimon | D22: Bělohlávek Petr | E22: Zapletal Jindřich | F22: Vičar Tomáš | G22: Michna Gabriel | H22: Pořadí | I22: Počet vítězství
A23: D1 | B23: Janoušek Šimon | D23: 4-0 | E23: 2-4 | F23: 4-0 | G23: 4-3 | H23: 1. | I23: 3
A24: D2 | B24: Bělohlávek Petr | C24: 0-4 | E24: 4-3 | F24: 0-4 | G24: 0-4 | H24: 5. | I24: 1
A25: D3 | B25: Zapletal Jindřich | C25: 4-2 | D25: 3-4 | F25: 4-0 | G25: 1-4 | H25: 3. | I25: 2
A26: D4 | B26: Vičar Tomáš | C26: 0-4 | D26: 4-0 | E26: 0-4 | G26: 1-4 | H26: 4. | I26: 1
A27: D5 | B27: Michna Gabriel | C27: 3-4 | D27: 4-0 | E27: 4-1 | F27: 4-1 | H27: 2. | I27: 3
A29: Skupina E - kurt | C29: 0 | D29: 0 | E29: 0 | F29: 0 | G29: 0 | H29: Pořadí | I29: Počet vítězství
A30: E1 | B30: 0 | D30: 0 | E30: 0 | F30: 0 | G30: 0
A31: E2 | B31: 0 | E31: 0 | F31: 0 | G31: 0
A32: E3 | B32: 0 | F32: 0 | G32: 0
A33: E4 | B33: 0 | G33: 0
A34: E5 | B34: 0
A36: Skupina F - kurt | C36: 0 | D36: 0 | E36: 0 | F36: 0 | G36: 0 | H36: Pořadí | I36: Počet vítězství
A37: F1 | B37: 0 | D37: 0 | E37: 0 | F37: 0 | G37: 0
A38: F2 | B38: 0 | E38: 0 | F38: 0 | G38: 0
A39: F3 | B39: 0 | F39: 0 | G39: 0
A40: F4 | B40: 0 | G40: 0
A41: F5 | B41: 0
A43: Skupina G - kurt | C43: 0 | D43: 0 | E43: 0 | F43: 0 | G43: 0 | H43: Pořadí | I43: Počet vítězství
A44: G1 | B44: 0 | D44: 0 | E44: 0 | F44: 0 | G44: 0
A45: G2 | B45: 0 | E45: 0 | F45: 0 | G45: 0
A46: G3 | B46: 0 | F46: 0 | G46: 0
A47: G4 | B47: 0 | G47: 0
A48: G5 | B48: 0
A50: Skupina H - kurt | C50: 0 | D50: 0 | E50: 0 | F50: 0 | G50: 0 | H50: Pořadí | I50: Počet vítězství
A51: H1 | B51: 0 | D51: 0 | E51: 0 | F51: 0 | G51: 0
A52: H2 | B52: 0 | E52: 0 | F52: 0 | G52: 0
A53: H3 | B53: 0 | F53: 0 | G53: 0
A54: H4 | B54: 0 | G54: 0
A55: H5 | B55: 0
A57: Skupina I - kurt | C57: 0 | D57: 0 | E57: 0 | F57: 0 | G57: 0 | H57: Pořadí | I57: Počet vítězství
A58: I1 | B58: 0 | D58: 0 | E58: 0 | F58: 0 | G58: 0
A59: I2 | B59: 0 | E59: 0 | F59: 0 | G59: 0
A60: I3 | B60: 0 | F60: 0 | G60: 0
A61: I4 | B61: 0 | G61: 0
A62: I5 | B62: 0
A64: Skupina J - kurt | C64: 0 | D64: 0 | E64: 0 | F64: 0 | G64: 0 | H64: Pořadí | I64: Počet vítězství
A65: J1 | B65: 0 | D65: 0 | E65: 0 | F65: 0 | G65: 0
A66: J2 | B66: 0 | E66: 0 | F66: 0 | G66: 0
A67: J3 | B67: 0 | F67: 0 | G67: 0
A68: J4 | B68: 0 | G68: 0
A69: J5 | B69: 0

Sheet Pavouk chlapci
A4: Fejka Štěpán
B6: Fejka Štěpán
B7: 4-0
A8: Štěpánek Adam
C10: Fejka Šimon
C11: 4-1
A12: Hájek Petr
B14: Janoušek Šimon
B15: 4-1
A16: Janoušek Šimon
C18: Fejka Štěpán
C19: 4-1
A20: Jaroš Vojta
B22: Michna Gabriel
B23: 4-3
A24: Michna Gabriel
C26: Šebek Filip
C27: 4-1
A28: Navarra Tomáš
B30: Šebek Filip
B31: 4-0
A32: Šebek Filip

Sheet Pořadí
A1: POŘADÍ - SPARTA HEAD BABYTENIS TOUR ZIMA 2019 - CHLAPCI
A24: Pořadí | B24: Příjmení | C24: 1. turnaj | D24: 2. turnaj | E24: 3. turnaj | F24: 4. turnaj | G24: Masters | H24: Celkem
A25: 1. | B25: Fejka Štěpán | C25: 300 | D25: 300 | E25: 300 | H25: =SUM(C25:G25) -> 900
A26: 2. | B26: Šebek Filip | C26: 200 | D26: 200 | E26: 250 | H26: =SUM(C26:G26) -> 650
A27: 3. | B27: Janoušek Šimon | C27: 250 | D27: 100 | E27: 200 | H27: =SUM(C27:G27) -> 550
A28: 4. | B28: Jaroš Vojta | C28: 200 | D28: 200 | E28: 100 | H28: =SUM(C28:G28) -> 500
A29: 5. | B29: Michna Gabriel | C29: 100 | D29: 100 | E29: 200 | H29: =SUM(C29:G29) -> 400
A30: 6. | B30: Zapský Tobiáš | C30: 0 | D30: 250 | E30: 0 | H30: =C30+D30 -> 250
A31: 7. | B31: Štěpánek Adam | C31: 100 | D31: 5 | E31: 100 | H31: =SUM(C31:G31) -> 205
A32: 8. | B32: Hájek Petr | C32: 100 | D32: 0 | E32: 100 | H32: =SUM(C32:G32) -> 200
A33: 9. | B33: Horáček Filip | C33: 20 | D33: 100 | E33: 0 | H33: =C33+D33 -> 120
A34: 10.-11 | B34: Hovorka Hugo | C34: 5 | D34: 100 | E34: 5 | H34: =SUM(C34:G34) -> 110
B35: Psota David | C35: 100 | D35: 0 | E35: 10 | H35: =SUM(C35:G35) -> 110
A36: 12. | B36: Mikeš David | C36: 50 | D36: 10 | E36: 20 | H36: =SUM(C36:G36) -> 80
A37: 13.-14. | B37: Polášek Oliver | C37: 50 | D37: 10 | E37: 0 | H37: =C37+D37 -> 60
B38: Hron Lukáš | C38: 20 | D38: 20 | E38: 20 | H38: =SUM(C38:G38) -> 60
A39: 15.-16. | B39: Zapletal Jindřich | C39: 20 | D39: 0 | E39: 20 | H39: =SUM(C39:G39) -> 40
B40: Kafka Michal | C40: 10 | D40: 10 | E40: 20 | H40: =SUM(C40:G40) -> 40
A41: 17.-18. | B41: Štefaník Antonín | C41: 20 | D41: 5 | E41: 10 | H41: =SUM(C41:G41) -> 35
B42: Roček Eduard | C42: 10 | D42: 20 | E42: 5 | H42: =SUM(C42:G42) -> 35
A43: 19. | B43: Vičar Tomáš | C43: 0 | D43: 20 | E43: 10 | H43: =SUM(C43:G43) -> 30
A44: 20. | B44: Krkoška Šimon | C44: 20 | D44: 0 | E44: 0 | H44: =C44+D44 -> 20
A45: 21.-22. | B45: Svoboda Filip | C45: 10 | D45: 5 | E45: 0 | H45: =C45+D45 -> 15
B46: Bělohlávek Petr | C46: 0 | D46: 10 | E46: 5 | H46: =SUM(C46:G46) -> 15
A47: 23.-26 | B47: Klvaň Maxmilián | C47: 10 | D47: 0 | E47: 0 | H47: =C47+D47 -> 10
B48: Hlas Robin | C48: 10 | D48: 0 | E48: 0 | H48: =C48+D48 -> 10
B49: Dušek Lukáš | C49: 0 | D49: 0 | E49: 10 | H49: =SUM(C49:G49) -> 10
H50: 0
H51: =C51+D51 -> 0
H52: 0
H53: 0
H54: 0
H55: 0
H56: 0
H57: 0
H58: 0
H59: 0
H60: 0
H61: 0
